fUSD/lending_fUSD_20260512
["ID","MTS","AMOUNT","RATE_DAILY","PERIOD"]
[422043937,1778528729000,-155.76950685,0.00041025,120]
[422043954,1778528730000,-156.50181816,0.00041025,120]
[422043956,1778528730000,-159.88862921,0.00041025,120]
[422043957,1778528730000,-153.11010614,0.00041025,120]
[422043951,1778528730000,-155.36149007,0.00041025,120]
[422043953,1778528730000,-794.11732315,0.00041025,120]
[422043952,1778528730000,-165.77804395,0.00041025,120]
[422043944,1778528730000,-623.0,0.00041025,120]
[422043948,1778528730000,-2488.67466621,0.00041025,120]
[422043949,1778528730000,-160.6338439,0.00041025,120]
[422043946,1778528730000,-153.92576959,0.00041025,120]
[422043947,1778528730000,-193.59792396,0.00041025,120]
[422043945,1778528730000,-1233.17062364,0.00041025,120]
[422043950,1778528730000,-712.61673459,0.00041025,120]
[422043959,1778528730000,-362.96128845,0.00041025,120]
[422043955,1778528730000,-186.80767882,0.00041025,120]
[422043958,1778528730000,-440.96565679,0.00041025,120]
[422043973,1778528730000,-177636.0,0.00041025,120]
[422043972,1778528730000,-522.80234778,0.00041025,120]
[422043971,1778528730000,-500.0,0.00041025,120]
[422043969,1778528730000,-523.23338895,0.00041025,120]
[422043970,1778528730000,-197.0,0.00041025,120]
[422043968,1778528730000,-500.0,0.00041025,120]
[422043960,1778528730000,-500.0,0.00041025,120]
[422043967,1778528730000,-500.0,0.00041025,120]
[422043965,1778528730000,-500.0,0.00041025,120]
[422043964,1778528730000,-500.0,0.00041025,120]
[422043962,1778528730000,-500.0,0.00041025,120]
[422043963,1778528730000,-500.0,0.00041025,120]
[422043961,1778528730000,-500.0,0.00041025,120]
[422043966,1778528730000,-500.0,0.00041025,120]
[422043988,1778528731000,-500.0,0.00041025,120]
[422043986,1778528731000,-430.14928,0.00041025,120]
[422043984,1778528731000,-1272.0633841,0.00041025,120]
[422043985,1778528731000,-69040.92714823,0.00041025,120]
[422043983,1778528731000,-8817.48403196,0.00041025,120]
[422043982,1778528731000,-463.18416296,0.00041025,120]
[422043978,1778528731000,-500.0,0.00041025,120]
[422043980,1778528731000,-500.0,0.00041025,120]
[422043979,1778528731000,-500.0,0.00041025,120]
[422043976,1778528731000,-500.0,0.00041025,120]
[422043977,1778528731000,-500.0,0.00041025,120]
[422043975,1778528731000,-500.0,0.00041025,120]
[422043987,1778528731000,-500.0,0.00041025,120]
[422043981,1778528731000,-500.0,0.00041025,120]
[422043974,1778528731000,-571.96155036,0.00041025,120]
[422043990,1778528731000,-500.0,0.00041025,120]
[422043992,1778528731000,-500.0,0.00041025,120]
[422043989,1778528731000,-500.0,0.00041025,120]
[422044006,1778528731000,-666.22,0.00041025,120]
[422044004,1778528731000,-666.22,0.00041025,120]
[422044005,1778528731000,-666.22,0.00041025,120]
[422044003,1778528731000,-666.22,0.00041025,120]
[422044000,1778528731000,-666.22,0.00041025,120]
[422044001,1778528731000,-666.22,0.00041025,120]
[422044002,1778528731000,-666.22,0.00041025,120]
[422043999,1778528731000,-666.22,0.00041025,120]
[422043998,1778528731000,-666.22,0.00041025,120]
[422043997,1778528731000,-666.22,0.00041025,120]
[422043994,1778528731000,-666.22,0.00041025,120]
[422043995,1778528731000,-666.22,0.00041025,120]
[422043993,1778528731000,-192.83793338,0.00041025,120]
[422043991,1778528731000,-500.0,0.00041025,120]
[422043996,1778528731000,-666.22,0.00041025,120]
[422044013,1778528732000,-666.22,0.00041025,120]
[422044020,1778528732000,-522.8,0.00041025,120]
[422044018,1778528732000,-1840.73567573,0.00041025,120]
[422044019,1778528732000,-522.8,0.00041025,120]
[422044017,1778528732000,-666.2756195,0.00041025,120]
[422044016,1778528732000,-666.22,0.00041025,120]
[422044014,1778528732000,-666.22,0.00041025,120]
[422044009,1778528732000,-666.22,0.00041025,120]
[422044012,1778528732000,-666.22,0.00041025,120]
[422044022,1778528732000,-522.8,0.00041025,120]
[422044011,1778528732000,-666.22,0.00041025,120]
[422044010,1778528732000,-666.22,0.00041025,120]
[422044007,1778528732000,-666.22,0.00041025,120]
[422044008,1778528732000,-666.22,0.00041025,120]
[422044015,1778528732000,-666.22,0.00041025,120]
[422044023,1778528732000,-522.8,0.00041025,120]
[422044034,1778528732000,-522.8,0.00041025,120]
[422044024,1778528732000,-522.8,0.00041025,120]
[422044039,1778528732000,-522.8,0.00041025,120]
[422044037,1778528732000,-522.8,0.00041025,120]
[422044038,1778528732000,-522.8,0.00041025,120]
[422044036,1778528732000,-522.8,0.00041025,120]
[422044035,1778528732000,-522.8,0.00041025,120]
[422044032,1778528732000,-522.8,0.00041025,120]
[422044033,1778528732000,-522.8,0.00041025,120]
[422044021,1778528732000,-522.8,0.00041025,120]
[422044030,1778528732000,-522.8,0.00041025,120]
[422044029,1778528732000,-522.8,0.00041025,120]
[422044028,1778528732000,-522.8,0.00041025,120]
[422044027,1778528732000,-522.8,0.00041025,120]
[422044025,1778528732000,-522.8,0.00041025,120]
[422044026,1778528732000,-522.8,0.00041025,120]
[422044031,1778528732000,-522.8,0.00041025,120]
[422044051,1778528733000,-631.25721424,0.00041025,120]
[422044054,1778528733000,-572.45867517,0.00041025,120]
[422044052,1778528733000,-298.02359426,0.00041025,120]
[422044049,1778528733000,-574.3430081,0.00041025,120]
[422044050,1778528733000,-556.03331952,0.00041025,120]
[422044047,1778528733000,-541.2801878,0.00041025,120]
[422044048,1778528733000,-557.44803372,0.00041025,120]
[422044045,1778528733000,-611.94044739,0.00041025,120]
[422044044,1778528733000,-213.88443473,0.00041025,120]
[422044043,1778528733000,-510.69827979,0.00041025,120]
[422044042,1778528733000,-522.99675037,0.00041025,120]
[422044040,1778528733000,-522.8,0.00041025,120]
[422044041,1778528733000,-522.8,0.00041025,120]
[422044053,1778528733000,-552.89760084,0.00041025,120]
[422044046,1778528733000,-554.34830418,0.00041025,120]
[422044056,1778528733000,-572.86776558,0.00041025,120]
[422044055,1778528733000,-601.70531519,0.00041025,120]
[422044074,1778528733000,-563.6939258,0.00041025,120]
[422044073,1778528733000,-382.37,0.00041025,120]
[422044057,1778528733000,-271.1059415,0.00041025,120]
[422044072,1778528733000,-500.0,0.00041025,120]
[422044071,1778528733000,-552.12759361,0.00041025,120]
[422044069,1778528733000,-546.55587579,0.00041025,120]
[422044068,1778528733000,-213.9,0.00041025,120]
[422044067,1778528733000,-500.0,0.00041025,120]
[422044065,1778528733000,-500.0,0.00041025,120]
[422044070,1778528733000,-500.0,0.00041025,120]
[422044066,1778528733000,-500.0,0.00041025,120]
[422044063,1778528733000,-500.0,0.00041025,120]
[422044061,1778528733000,-500.0,0.00041025,120]
[422044062,1778528733000,-291.03830037,0.00041025,120]
[422044060,1778528733000,-259.88052273,0.00041025,120]
[422044058,1778528733000,-258.47896337,0.00041025,120]
[422044059,1778528733000,-292.46315795,0.00041025,120]
[422044064,1778528733000,-500.0,0.00041025,120]
[422044083,1778528734000,-261.45901728,0.00041025,120]
[422044088,1778528734000,-500.0,0.00041025,120]
[422044086,1778528734000,-536.39908663,0.00041025,120]
[422044087,1778528734000,-213.07938153,0.00041025,120]
[422044085,1778528734000,-500.0,0.00041025,120]
[422044084,1778528734000,-600.2692489,0.00041025,120]
[422044082,1778528734000,-172.0788946,0.00041025,120]
[422044090,1778528734000,-255.59757673,0.00041025,120]
[422044081,1778528734000,-370.92237638,0.00041025,120]
[422044079,1778528734000,-587.51722371,0.00041025,120]
[422044078,1778528734000,-300.75141538,0.00041025,120]
[422044076,1778528734000,-616.49052112,0.00041025,120]
[422044075,1778528734000,-181.54768014,0.00041025,120]
[422044077,1778528734000,-468.26945425,0.00041025,120]
[422044080,1778528734000,-288.34045688,0.00041025,120]
[422044089,1778528734000,-500.0,0.00041025,120]
[422044091,1778528734000,-261.4271558,0.00041025,120]
[422044093,1778528734000,-237.47911547,0.00041025,120]
[422044106,1778528734000,-219.12823072,0.00041025,120]
[422044107,1778528734000,-422.78568927,0.00041025,120]
[422044103,1778528734000,-232.13043531,0.00041025,120]
[422044105,1778528734000,-217.27773736,0.00041025,120]
[422044104,1778528734000,-264.88954883,0.00041025,120]
[422044101,1778528734000,-532.70069478,0.00041025,120]
[422044102,1778528734000,-211.73592567,0.00041025,120]
[422044108,1778528734000,-500.0,0.00041025,120]
[422044100,1778528734000,-234.49159772,0.00041025,120]
[422044098,1778528734000,-500.0,0.00041025,120]
[422044097,1778528734000,-199.23242598,0.00041025,120]
[422044096,1778528734000,-595.1340025,0.00041025,120]
[422044092,1778528734000,-210.93941299,0.00041025,120]
[422044095,1778528734000,-500.0,0.00041025,120]
[422044094,1778528734000,-500.0,0.00041025,120]
[422044099,1778528734000,-256.94962177,0.00041025,120]
[422044122,1778528735000,-500.0,0.00041025,120]
[422044120,1778528735000,-169.455084,0.00041025,120]
[422044121,1778528735000,-500.0,0.00041025,120]
[422044118,1778528735000,-500.0,0.00041025,120]
[422044119,1778528735000,-156.15764722,0.00041025,120]
[422044116,1778528735000,-213.32832493,0.00041025,120]
[422044117,1778528735000,-511.83466235,0.00041025,120]
[422044112,1778528735000,-519.89008502,0.00041025,120]
[422044114,1778528735000,-500.0,0.00041025,120]
[422044113,1778528735000,-603.59427971,0.00041025,120]
[422044111,1778528735000,-500.0,0.00041025,120]
[422044109,1778528735000,-545.37866445,0.00041025,120]
[422044110,1778528735000,-500.0,0.00041025,120]
[422044123,1778528735000,-260.27194212,0.00041025,120]
[422044115,1778528735000,-500.0,0.00041025,120]
[422044124,1778528735000,-262.10088304,0.00041025,120]
[422044125,1778528735000,-325.33932379,0.00041025,120]
[422044126,1778528735000,-332.55254192,0.00041025,120]
[422044140,1778528735000,-500.0,0.00041025,120]
[422044141,1778528735000,-282.96433974,0.00041025,120]
[422044137,1778528735000,-500.0,0.00041025,120]
[422044139,1778528735000,-470.8020763,0.00041025,120]
[422044138,1778528735000,-644.49707274,0.00041025,120]
[422044136,1778528735000,-231.34911664,0.00041025,120]
[422044134,1778528735000,-613.25289103,0.00041025,120]
[422044142,1778528735000,-582.27608814,0.00041025,120]
[422044132,1778528735000,-185.63388345,0.00041025,120]
[422044133,1778528735000,-265.27052452,0.00041025,120]
[422044131,1778528735000,-595.3194891,0.00041025,120]
[422044130,1778528735000,-243.70451635,0.00041025,120]
[422044128,1778528735000,-265.88027311,0.00041025,120]
[422044129,1778528735000,-313.63580416,0.00041025,120]
[422044127,1778528735000,-500.0,0.00041025,120]
[422044135,1778528735000,-500.0,0.00041025,120]
[422044157,1778528736000,-591.94878909,0.00041025,120]
[422044155,1778528736000,-500.0,0.00041025,120]
[422044154,1778528736000,-500.0,0.00041025,120]
[422044153,1778528736000,-556.35837151,0.00041025,120]
[422044150,1778528736000,-411.63846145,0.00041025,120]
[422044151,1778528736000,-243.95089203,0.00041025,120]
[422044152,1778528736000,-369.4523761,0.00041025,120]
[422044146,1778528736000,-634.17809085,0.00041025,120]
[422044147,1778528736000,-500.0,0.00041025,120]
[422044148,1778528736000,-207.88053463,0.00041025,120]
[422044145,1778528736000,-245.92130527,0.00041025,120]
[422044144,1778528736000,-486.12132541,0.00041025,120]
[422044143,1778528736000,-211.08537646,0.00041025,120]
[422044158,1778528736000,-556.65494821,0.00041025,120]
[422044149,1778528736000,-500.0,0.00041025,120]
[422044156,1778528736000,-498.97090632,0.00041025,120]
[422044176,1778528736000,-777.08,0.00041025,120]
[422044161,1778528736000,-500.0,0.00041025,120]
[422044175,1778528736000,-777.08,0.00041025,120]
[422044174,1778528736000,-777.08,0.00041025,120]
[422044172,1778528736000,-777.08,0.00041025,120]
[422044173,1778528736000,-573.60108878,0.00041025,120]
[422044171,1778528736000,-777.08,0.00041025,120]
[422044170,1778528736000,-777.08,0.00041025,120]
[422044169,1778528736000,-777.08,0.00041025,120]
[422044160,1778528736000,-556.00730738,0.00041025,120]
[422044166,1778528736000,-777.08,0.00041025,120]
[422044167,1778528736000,-777.08,0.00041025,120]
[422044164,1778528736000,-777.08,0.00041025,120]
[422044165,1778528736000,-625.69727913,0.00041025,120]
[422044163,1778528736000,-777.08,0.00041025,120]
[422044162,1778528736000,-777.08,0.00041025,120]
[422044159,1778528736000,-177.16785174,0.00041025,120]
[422044168,1778528736000,-777.08,0.00041025,120]
[422044189,1778528737000,-777.10938558,0.00041025,120]
[422044188,1778528737000,-500.0,0.00041025,120]
[422044190,1778528737000,-216.77283125,0.00041025,120]
[422044186,1778528737000,-777.08,0.00041025,120]
[422044185,1778528737000,-777.08,0.00041025,120]
[422044187,1778528737000,-585.67082979,0.00041025,120]
[422044181,1778528737000,-777.08,0.00041025,120]
[422044179,1778528737000,-777.08,0.00041025,120]
[422044183,1778528737000,-777.08,0.00041025,120]
[422044182,1778528737000,-777.08,0.00041025,120]
[422044177,1778528737000,-777.08,0.00041025,120]
[422044180,1778528737000,-777.08,0.00041025,120]
[422044178,1778528737000,-777.08,0.00041025,120]
[422044194,1778528737000,-560.29029926,0.00041025,120]
[422044184,1778528737000,-777.08,0.00041025,120]
[422044191,1778528737000,-353.49566437,0.00041025,120]
[422044192,1778528737000,-207.85634471,0.00041025,120]
[422044193,1778528737000,-500.0,0.00041025,120]
[422044210,1778528737000,-233.84679749,0.00041025,120]
[422044208,1778528737000,-320.74986846,0.00041025,120]
[422044206,1778528737000,-500.0,0.00041025,120]
[422044205,1778528737000,-250.11612206,0.00041025,120]
[422044207,1778528737000,-524.71021764,0.00041025,120]
[422044204,1778528737000,-566.35085303,0.00041025,120]
[422044201,1778528737000,-500.0,0.00041025,120]
[422044209,1778528737000,-204.78635403,0.00041025,120]
[422044202,1778528737000,-531.83057446,0.00041025,120]
[422044200,1778528737000,-504.61,0.00041025,120]
[422044199,1778528737000,-283.80472594,0.00041025,120]
[422044198,1778528737000,-611.718508,0.00041025,120]
[422044197,1778528737000,-632.13402684,0.00041025,120]
[422044196,1778528737000,-500.0,0.00041025,120]
[422044195,1778528737000,-525.94231205,0.00041025,120]
[422044203,1778528737000,-500.0,0.00041025,120]
[422044224,1778528738000,-470.19185425,0.00041025,120]
[422044223,1778528738000,-500.0,0.00041025,120]
[422044222,1778528738000,-602.26376511,0.00041025,120]
[422044220,1778528738000,-500.0,0.00041025,120]
[422044221,1778528738000,-500.0,0.00041025,120]
[422044219,1778528738000,-281.25788127,0.00041025,120]
[422044216,1778528738000,-164.55284383,0.00041025,120]
[422044214,1778528738000,-500.0,0.00041025,120]
[422044217,1778528738000,-500.0,0.00041025,120]
[422044215,1778528738000,-500.0,0.00041025,120]
[422044212,1778528738000,-500.0,0.00041025,120]
[422044213,1778528738000,-500.0,0.00041025,120]
[422044211,1778528738000,-529.44144298,0.00041025,120]
[422044227,1778528738000,-500.0,0.00041025,120]
[422044218,1778528738000,-604.41671368,0.00041025,120]
[422044225,1778528738000,-500.0,0.00041025,120]
[422044244,1778528738000,-500.0,0.00041025,120]
[422044226,1778528738000,-530.40363004,0.00041025,120]
[422044228,1778528738000,-638.94846886,0.00041025,120]
[422044243,1778528738000,-332.27230332,0.00041025,120]
[422044240,1778528738000,-500.0,0.00041025,120]
[422044241,1778528738000,-500.0,0.00041025,120]
[422044242,1778528738000,-500.0,0.00041025,120]
[422044239,1778528738000,-536.84234683,0.00041025,120]
[422044237,1778528738000,-544.16565837,0.00041025,120]
[422044236,1778528738000,-500.0,0.00041025,120]
[422044233,1778528738000,-239.34325348,0.00041025,120]
[422044234,1778528738000,-500.0,0.00041025,120]
[422044235,1778528738000,-530.39014373,0.00041025,120]
[422044232,1778528738000,-500.0,0.00041025,120]
[422044229,1778528738000,-216.70919445,0.00041025,120]
[422044231,1778528738000,-500.0,0.00041025,120]
[422044230,1778528738000,-224.94534146,0.00041025,120]
[422044238,1778528738000,-500.0,0.00041025,120]
[422044253,1778528739000,-500.0,0.00041025,120]
[422044256,1778528739000,-214.06882713,0.00041025,120]
[422044260,1778528739000,-500.0,0.00041025,120]
[422044258,1778528739000,-500.0,0.00041025,120]
[422044261,1778528739000,-500.0,0.00041025,120]
[422044255,1778528739000,-521.85878678,0.00041025,120]
[422044254,1778528739000,-549.59433501,0.00041025,120]
[422044245,1778528739000,-308.19770579,0.00041025,120]
[422044252,1778528739000,-500.0,0.00041025,120]
[422044251,1778528739000,-500.0,0.00041025,120]
[422044257,1778528739000,-500.0,0.00041025,120]
[422044248,1778528739000,-500.0,0.00041025,120]
[422044247,1778528739000,-250.83737793,0.00041025,120]
[422044246,1778528739000,-500.0,0.00041025,120]
[422044250,1778528739000,-424.41120673,0.00041025,120]
[422044259,1778528739000,-500.0,0.00041025,120]
[422044249,1778528739000,-526.00935311,0.00041025,120]
[422044263,1778528739000,-527.49917645,0.00041025,120]
[422044262,1778528739000,-500.0,0.00041025,120]
[422044278,1778528739000,-462.75998656,0.00041025,120]
[422044276,1778528739000,-500.0,0.00041025,120]
[422044275,1778528739000,-500.0,0.00041025,120]
[422044274,1778528739000,-500.0,0.00041025,120]
[422044273,1778528739000,-500.0,0.00041025,120]
[422044272,1778528739000,-500.0,0.00041025,120]
[422044277,1778528739000,-500.0,0.00041025,120]
[422044270,1778528739000,-577.97953372,0.00041025,120]
[422044269,1778528739000,-500.0,0.00041025,120]
[422044266,1778528739000,-500.0,0.00041025,120]
[422044267,1778528739000,-500.0,0.00041025,120]
[422044268,1778528739000,-500.0,0.00041025,120]
[422044264,1778528739000,-500.0,0.00041025,120]
[422044265,1778528739000,-500.0,0.00041025,120]
[422044271,1778528739000,-215.6629222,0.00041025,120]
[422044291,1778528740000,-500.0,0.00041025,120]
[422044290,1778528740000,-500.0,0.00041025,120]
[422044289,1778528740000,-500.0,0.00041025,120]
[422044286,1778528740000,-500.0,0.00041025,120]
[422044288,1778528740000,-583.58727251,0.00041025,120]
[422044287,1778528740000,-169.48121204,0.00041025,120]
[422044280,1778528740000,-500.0,0.00041025,120]
[422044283,1778528740000,-500.0,0.00041025,120]
[422044284,1778528740000,-500.0,0.00041025,120]
[422044282,1778528740000,-641.7,0.00041025,120]
[422044281,1778528740000,-500.0,0.00041025,120]
[422044279,1778528740000,-500.0,0.00041025,120]
[422044292,1778528740000,-500.0,0.00041025,120]
[422044285,1778528740000,-504.47573367,0.00041025,120]
[422044293,1778528740000,-500.0,0.00041025,120]
[422044298,1778528740000,-516.38602497,0.00041025,120]
[422044295,1778528740000,-500.0,0.00041025,120]
[422044310,1778528740000,-500.0,0.00041025,120]
[422044308,1778528740000,-500.0,0.00041025,120]
[422044294,1778528740000,-287.59234119,0.00041025,120]
[422044307,1778528740000,-500.0,0.00041025,120]
[422044306,1778528740000,-500.0,0.00041025,120]
[422044304,1778528740000,-527.35516115,0.00041025,120]
[422044305,1778528740000,-500.0,0.00041025,120]
[422044309,1778528740000,-371.9063169,0.00041025,120]
[422044301,1778528740000,-500.0,0.00041025,120]
[422044302,1778528740000,-508.1025453,0.00041025,120]
[422044300,1778528740000,-556.18859054,0.00041025,120]
[422044299,1778528740000,-260.28772335,0.00041025,120]
[422044297,1778528740000,-300.11029734,0.00041025,120]
[422044296,1778528740000,-500.0,0.00041025,120]
[422044303,1778528740000,-500.0,0.00041025,120]
[422044320,1778528741000,-500.0,0.00041025,120]
[422044317,1778528741000,-500.0,0.00041025,120]
[422044318,1778528741000,-500.0,0.00041025,120]
[422044315,1778528741000,-500.0,0.00041025,120]
[422044313,1778528741000,-500.0,0.00041025,120]
[422044314,1778528741000,-500.0,0.00041025,120]
[422044312,1778528741000,-529.48,0.00041025,120]
[422044311,1778528741000,-500.0,0.00041025,120]
[422044321,1778528741000,-354.74588321,0.00041025,120]
[422044316,1778528741000,-541.42723178,0.00041025,120]
[422044322,1778528741000,-500.0,0.00041025,120]
[422044319,1778528741000,-310.08770359,0.00041025,120]
[422044324,1778528741000,-500.0,0.00041025,120]
[422044323,1778528741000,-500.0,0.00041025,120]
[422044335,1778528741000,-576.34066041,0.00041025,120]
[422044332,1778528741000,-152.72228113,0.00041025,120]
[422044331,1778528741000,-500.0,0.00041025,120]
[422044330,1778528741000,-500.0,0.00041025,120]
[422044333,1778528741000,-536.99808027,0.00041025,120]
[422044327,1778528741000,-500.0,0.00041025,120]
[422044328,1778528741000,-500.0,0.00041025,120]
[422044326,1778528741000,-518.60624315,0.00041025,120]
[422044334,1778528741000,-500.0,0.00041025,120]
[422044325,1778528741000,-500.0,0.00041025,120]
[422044329,1778528741000,-500.0,0.00041025,120]
[422044346,1778528742000,-500.0,0.00041025,120]
[422044351,1778528742000,-187.33948249,0.00041025,120]
[422044349,1778528742000,-500.0,0.00041025,120]
[422044348,1778528742000,-500.0,0.00041025,120]
[422044345,1778528742000,-216.52800661,0.00041025,120]
[422044347,1778528742000,-500.0,0.00041025,120]
[422044343,1778528742000,-310.92120928,0.00041025,120]
[422044338,1778528742000,-568.81019762,0.00041025,120]
[422044344,1778528742000,-500.0,0.00041025,120]
[422044341,1778528742000,-500.0,0.00041025,120]
[422044339,1778528742000,-500.0,0.00041025,120]
[422044340,1778528742000,-537.32284977,0.00041025,120]
[422044352,1778528742000,-303.4051758,0.00041025,120]
[422044337,1778528742000,-500.0,0.00041025,120]
[422044336,1778528742000,-500.0,0.00041025,120]
[422044342,1778528742000,-500.0,0.00041025,120]
[422044354,1778528742000,-174.06878691,0.00041025,120]
[422044350,1778528742000,-454.19859285,0.00041025,120]
[422044353,1778528742000,-500.0,0.00041025,120]
[422044355,1778528742000,-225.08955447,0.00041025,120]
[422044370,1778528742000,-603.06808575,0.00041025,120]
[422044371,1778528742000,-500.0,0.00041025,120]
[422044367,1778528742000,-500.0,0.00041025,120]
[422044368,1778528742000,-584.96,0.00041025,120]
[422044364,1778528742000,-500.0,0.00041025,120]
[422044366,1778528742000,-500.0,0.00041025,120]
[422044365,1778528742000,-500.0,0.00041025,120]
[422044369,1778528742000,-500.0,0.00041025,120]
[422044361,1778528742000,-500.0,0.00041025,120]
[422044360,1778528742000,-500.0,0.00041025,120]
[422044362,1778528742000,-500.0,0.00041025,120]
[422044358,1778528742000,-550.76824033,0.00041025,120]
[422044359,1778528742000,-500.0,0.00041025,120]
[422044356,1778528742000,-274.39368105,0.00041025,120]
[422044357,1778528742000,-500.0,0.00041025,120]
[422044363,1778528742000,-500.0,0.00041025,120]
[422044381,1778528743000,-500.0,0.00041025,120]
[422044386,1778528743000,-500.0,0.00041025,120]
[422044388,1778528743000,-500.0,0.00041025,120]
[422044387,1778528743000,-370.26153262,0.00041025,120]
[422044384,1778528743000,-500.0,0.00041025,120]
[422044382,1778528743000,-500.0,0.00041025,120]
[422044383,1778528743000,-195.70451275,0.00041025,120]
[422044372,1778528743000,-347.40739599,0.00041025,120]
[422044380,1778528743000,-500.0,0.00041025,120]
[422044379,1778528743000,-500.0,0.00041025,120]
[422044377,1778528743000,-529.18511601,0.00041025,120]
[422044375,1778528743000,-500.0,0.00041025,120]
[422044374,1778528743000,-562.82164905,0.00041025,120]
[422044376,1778528743000,-531.2443463,0.00041025,120]
[422044373,1778528743000,-255.53621422,0.00041025,120]
[422044378,1778528743000,-611.98163639,0.00041025,120]
[422044390,1778528743000,-602.43736721,0.00041025,120]
[422044385,1778528743000,-154.84941238,0.00041025,120]
[422044391,1778528743000,-500.0,0.00041025,120]
[422044406,1778528743000,-500.0,0.00041025,120]
[422044405,1778528743000,-500.0,0.00041025,120]
[422044404,1778528743000,-500.0,0.00041025,120]
[422044403,1778528743000,-500.0,0.00041025,120]
[422044402,1778528743000,-500.0,0.00041025,120]
[422044400,1778528743000,-520.01794084,0.00041025,120]
[422044401,1778528743000,-203.37182261,0.00041025,120]
[422044407,1778528743000,-500.0,0.00041025,120]
[422044397,1778528743000,-500.0,0.00041025,120]
[422044399,1778528743000,-519.37282268,0.00041025,120]
[422044393,1778528743000,-523.50311283,0.00041025,120]
[422044392,1778528743000,-500.0,0.00041025,120]
[422044389,1778528743000,-500.0,0.00041025,120]
[422044396,1778528743000,-500.0,0.00041025,120]
[422044395,1778528743000,-559.0924757,0.00041025,120]
[422044398,1778528743000,-190.7248245,0.00041025,120]
[422044394,1778528743000,-500.0,0.00041025,120]
[422044422,1778528744000,-500.0,0.00041025,120]
[422044421,1778528744000,-500.0,0.00041025,120]
[422044419,1778528744000,-500.0,0.00041025,120]
[422044420,1778528744000,-589.74088502,0.00041025,120]
[422044418,1778528744000,-500.0,0.00041025,120]
[422044417,1778528744000,-500.0,0.00041025,120]
[422044414,1778528744000,-500.0,0.00041025,120]
[422044415,1778528744000,-500.0,0.00041025,120]
[422044411,1778528744000,-500.0,0.00041025,120]
[422044412,1778528744000,-500.0,0.00041025,120]
[422044410,1778528744000,-500.20360253,0.00041025,120]
[422044409,1778528744000,-500.0,0.00041025,120]
[422044408,1778528744000,-500.0,0.00041025,120]
[422044423,1778528744000,-512.44695353,0.00041025,120]
[422044416,1778528744000,-500.0,0.00041025,120]
[422044413,1778528744000,-610.64542272,0.00041025,120]
[422044425,1778528744000,-365.17884819,0.00041025,120]
[422044426,1778528744000,-252.77243713,0.00041025,120]
[422044424,1778528744000,-531.80590255,0.00041025,120]
[422044441,1778528744000,-500.0,0.00041025,120]
[422044438,1778528744000,-207.27656571,0.00041025,120]
[422044439,1778528744000,-511.95719128,0.00041025,120]
[422044440,1778528744000,-500.0,0.00041025,120]
[422044436,1778528744000,-351.99607109,0.00041025,120]
[422044435,1778528744000,-500.0,0.00041025,120]
[422044437,1778528744000,-211.19984143,0.00041025,120]
[422044433,1778528744000,-500.0,0.00041025,120]
[422044432,1778528744000,-535.32407366,0.00041025,120]
[422044431,1778528744000,-500.0,0.00041025,120]
[422044430,1778528744000,-201.42857497,0.00041025,120]
[422044428,1778528744000,-500.0,0.00041025,120]
[422044429,1778528744000,-500.0,0.00041025,120]
[422044427,1778528744000,-500.0,0.00041025,120]
[422044434,1778528744000,-500.0,0.00041025,120]
[422044451,1778528745000,-500.0,0.00041025,120]